[Event "56th Biel Festival MTO 2023"]
[White "Ammar,Sedrani"]
[Black "Akshit Kumar J"]
[Site "Biel"]
[Round "3.45"]
[Annotator "RC"]
[Result "0-1"]
[Date "2023.07.19"]
[WhiteElo "2154"]
[BlackElo "2105"]
[PlyCount "100"]
[TimeControl "60"]

1. d4 {[%emt 0:0:0]} d5 {[%emt 0:0:0]} 2. c4 {[%emt 0:0:0]} c6 {[%emt 0:0:0]} 3. cxd5 {[%emt 0:0:0]} cxd5 {[%emt 0:0:0]} 4. Bg5 {[%emt 0:0:0]} Qb6 {[%emt 0:11:17]} 5. Nc3 {[%emt 0:0:0]} Bg4 {[%emt 0:7:23]} 6. f3 {[%emt 0:5:1]} Bh5 {[%emt 0:12:28]} 7. Qa4+ {[%emt 0:1:29]} Nc6 {[%emt 0:3:15]} 8. Nxd5 {[%emt 0:5:58]} Qxb2 {[%emt 0:2:37]} 9. Rc1 {[%emt 0:3:42]} Rc8 {[%emt 0:4:58]} 10. e4 {[%emt 0:4:44]} e6 {[%emt 0:4:34]} 11. Bb5 {[%emt 0:6:23]} exd5 {[%emt 0:7:17]} 12. Bxc6+ {[%emt 0:0:12]} Rxc6 {[%emt 0:6:23]} 13. Rxc6 {[%emt 0:27:11]} Qb4+ {[%emt 0:1:44]} 14. Qxb4 {[%emt 0:0:7]} Bxb4+ {[%emt 0:0:10]} 15. Kf2 {[%emt 0:0:1]} bxc6 {[%emt 0:0:21]} 16. Ne2 {[%emt 0:0:7]} dxe4 {[%emt 0:6:38]} 17. Rb1 {[%emt 0:0:13]} Bd6 {[%emt 0:0:15]} 18. fxe4 {[%emt 0:1:4]} f6 {[%emt 0:2:58]} 19. Bf4 {[%emt 0:0:21]} Be7 {[%emt 0:11:3]} 20. Ng3 {[%emt 0:2:16]} Bg4 {[%emt 0:1:17]} 21. Rb8+ {[%emt 0:0:13]} Kf7 {[%emt 0:0:24]} 22. d5 {[%emt 0:4:53]} cxd5 {[%emt 0:5:36]} 23. exd5 {[%emt 0:0:2]} g5 {[%emt 0:3:10]} 24. Bc7 {[%emt 0:1:5]} Bc5+ {[%emt 0:1:31]} 25. Kf1 {[%emt 0:0:16]} Kg7 {[%emt 0:1:19]} 26. h3 {[%emt 0:1:17]} Bd7 {[%emt 0:1:17]} 27. Ne4 {[%emt 0:2:27]} Bd4 {[%emt 0:1:7]} 28. Bd6 {[%emt 0:6:3]} Bf5 {[%emt 0:1:49]} 29. Ng3 {[%emt 0:3:2]} Bd3+ {[%emt 0:0:6]} 30. Ke1 {[%emt 0:0:31]} f5 {[%emt 0:1:4]} 31. Kd2 {[%emt 0:10:27]} Be4 {[%emt 0:0:5]} 32. Ne2 {[%emt 0:1:53]} Bf6 {[%emt 0:1:4]} 33. Bf8+ {[%emt 0:0:23]} Kf7 {[%emt 0:1:2]} 34. d6 {[%emt 0:0:8]} Ke6 {[%emt 0:0:31]} 35. Rb5 {[%emt 0:1:52]} h5 {[%emt 0:0:55]} 36. Ra5 {[%emt 0:2:52]} Nh6 {[%emt 0:1:11]} 37. Bxh6 {[%emt 0:0:17]} Rxh6 {[%emt 0:0:6]} 38. Ra6 {[%emt 0:0:5]} Bxg2 {[%emt 0:1:16]} 39. Nd4+ {[%emt 0:0:23]} Bxd4 {[%emt 0:1:9]} 40. d7+ {[%emt 0:0:1]} Kxd7 {[%emt 0:0:7]} 41. Rxh6 {[%emt 0:30:3]} h4 {[%emt 0:30:59]} 42. Rg6 {[%emt 0:1:52]} Be5 {[%emt 0:0:0]} 43. Ke2 {[%emt 0:0:0]} Bf4 {[%emt 0:0:0]} 44. Rg7+ {[%emt 0:0:0]} Kc6 {[%emt 0:0:0]} 45. Rxa7 {[%emt 0:0:0]} Bxh3 {[%emt 0:0:0]} 46. a4 {[%emt 0:0:0]} Bg2 {[%emt 0:0:0]} 47. Kf2 {[%emt 0:0:0]} Be4 {[%emt 0:0:0]} 48. Rh7 {[%emt 0:0:0]} Kb6 {[%emt 0:0:0]} 49. Ke2 {[%emt 0:0:0]} Bg3 {[%emt 0:0:0]} 50. Ke3 {[%emt 0:0:0]} g4 {[%emt 0:0:0]} 0-1

[Event "56th Biel Festival MTO 2023"]
[White "Ludwig,Peter"]
[Black "Lorscheid,Gerhard"]
[Site "Biel"]
[Round "3.46"]
[Annotator "TA"]
[Result "0-1"]
[Date "2023.07.19"]
[WhiteElo "2147"]
[BlackElo "2099"]
[PlyCount "68"]
[TimeControl "60"]

{[%evp 22,68,0,-12,0,-10,0,-28,0,0,0,0,0,0,57,4,0,2,23,0,0,-3,0,-26,-20,-91,-91,-84,-85,-85,-4,-121,-129,-162,-133,-134,-131,-135,-139,-134,-133,-170,-162,-173,-96,-107,-96,-12833,-10887]} 1. Nf3 {[%emt 0:0:0]} d5 {[%emt 0:0:0]} 2. c4 {[%emt 0:0:0]} c6 {[%emt 0:0:0]} 3. g3 {[%emt 0:0:0]} Bg4 {[%emt 0:0:0]} 4. Bg2 {[%emt 0:0:0]} e6 {[%emt 0:0:0]} 5. O-O {[%emt 0:0:0]} Nd7 {[%emt 0:0:0]} 6. d4 {[%emt 0:0:0]} Ngf6 {[%emt 0:0:0]} 7. Nbd2 {[%emt 0:1:20]} Be7 {[%emt 0:0:0]} 8. b3 {[%emt 0:0:30]} O-O {[%emt 0:0:15]} 9. Bb2 {[%emt 0:0:4]} a5 {[%emt 0:0:37]} 10. a3 {[%emt 0:2:0]} h6 {[%emt 0:5:52]} 11. Re1 {[%emt 0:1:49]} Bf5 {[%emt 0:4:45]} 12. Ne5 {[%emt 0:0:40]} Bh7 {[%emt 0:4:33] D11: Slav Defence: 3 Nf3 sidelines and 3...Nf6 4 e3 Bg4.} 13. e3 {[%emt 0:1:45] [#]} Qc7 $146 {[%emt 0:14:51]} ({Predecessor:} 13... Nxe5 14. dxe5 Nd7 15. e4 Nc5 16. cxd5 cxd5 17. exd5 exd5 18. Bd4 Ne6 19. Nf1 Rc8 {½-½ Tomecek,J (2191)-Pacl,V (2287) MOR-chT2N 0203 2002 (9)} )14. Qe2 {[%emt 0:10:0]} Rfd8 {[%emt 0:4:21] Black has an edge.} 15. Rac1 {[%emt 0:1:56]} Nxe5 {[%emt 0:1:22]} 16. dxe5 {[%emt 0:0:15]} Nd7 {[%emt 0:0:4]} 17. cxd5 {[%emt 0:11:27]} Nxe5 {[%emt 0:19:42]} (17... exd5 $11 18. e4 d4 )18. Bxe5 {[%emt 0:5:1]} (18. e4 $1 $14 )Qxe5 $11 {[%emt 0:0:23]} 19. Nc4 {[%emt 0:3:24]} Qc7 {[%emt 0:5:14]} 20. dxc6 {[%emt 0:0:55]} bxc6 {[%emt 0:0:15]} 21. Qf3 {[%emt 0:2:55]} Rab8 {[%emt 0:5:48]} 22. Qh5 {[%emt 0:2:10]} Rb5 {[%emt 0:1:0]} 23. Qe2 {[%emt 0:1:27]} (23. Qf3 $11 {keeps the balance.} )Rxb3 $17 {[%emt 0:0:43]} 24. Red1 {[%emt 0:4:21]} Bd3 $36 {[%emt 0:6:45][%mdl 2048] Black is on the roll. Black is more active.} 25. Qe1 {[%emt 0:1:7]} Bxa3 {[%emt 0:10:31]} (25... Bxc4 $17 26. Rxc4 c5 27. Rxd8+ Qxd8 )26. Nxa3 {[%emt 0:6:57]} (26. Qxa5 $11 Bd6 27. Bf1 Bxf1 28. Kxf1 )Rxa3 {[%emt 0:0:9]} 27. Rxc6 {[%emt 0:0:5]} Qb8 {[%emt 0:0:50]} 28. Rc3 {[%emt 0:1:32]} Rxc3 {[%emt 0:4:30]} 29. Qxc3 {[%emt 0:0:7]} Be2 {[%emt 0:0:11]} 30. Re1 {[%emt 0:3:59]} Qb5 {[%emt 0:2:2]} 31. Bc6 {[%emt 0:0:22] [#]} Qa6 {[%emt 0:0:15]} 32. Be4 {[%emt 0:2:9]} Bg4 {[%emt 0:2:26]} (32... a4 $19 {aiming for ...a3.} 33. Ra1 f5 )33. Ra1 {[%emt 0:1:57][%cal Oc3c7]} Bh3 {[%emt 0:1:54]} 34. Qe5 $2 {[%emt 0:9:31][%mdl 8192]} (34. Qc6 $17 Qxc6 35. Bxc6 )Qe2 {[%emt 0:1:20] Weighted Error Value: White=0.46/Black=0.20 (precise)} 0-1

[Event "56th Biel Festival MTO 2023"]
[White "Schnell,Simon"]
[Black "Jaksland,Tim"]
[Site "Biel"]
[Round "3.47"]
[Annotator "TA"]
[Result "1/2-1/2"]
[Date "2023.07.19"]
[WhiteElo "2029"]
[BlackElo "2136"]
[PlyCount "59"]
[TimeControl "60"]

{[%evp 13,59,0,0,-4,-1,0,0,-29,-16,-21,-17,-27,-24,-27,-29,-28,-35,-117,-29,-69,-36,-36,-36,-39,-27,-32,-30,-78,-30,-25,-31,-72,-50,-51,-25,-53,-30,-49,-44,-57,0,-54,34,-66,32,-62,88,-76]} 1. d4 {[%emt 0:0:0]} Nf6 {[%emt 0:0:0]} 2. c4 {[%emt 0:0:0]} e6 {[%emt 0:0:0]} 3. Nc3 {[%emt 0:0:0]} Bb4 {[%emt 0:0:0]} 4. e3 {[%emt 0:0:0]} O-O {[%emt 0:0:0]} 5. Bd2 {[%emt 0:0:0]} d5 {[%emt 0:0:0]} 6. Nf3 {[%emt 0:0:0]} b6 {[%emt 0:0:0]} 7. cxd5 {[%emt 0:0:0]} exd5 {[%emt 0:0:0]} 8. Bd3 {[%emt 0:0:0] E51: Nimzo-Indian: Rubinstein: 4...0-0 5 Nf3 d5.} Bd6 {[%emt 0:0:0]} 9. Rc1 {[%emt 0:0:0]} c5 {[%emt 0:1:49]} 10. O-O {[%emt 0:7:26] The position is equal.} Re8 {[%emt 0:2:43]} 11. Nb5 {[%emt 0:4:36]} Bf8 {[%emt 0:2:6]} 12. Ne5 {[%emt 0:1:19]} Bb7 {[%emt 0:4:13][%cal Bc8b7,Bb7c6,Bc6b5][%mdl 32] [#]} 13. f3 $146 {[%emt 0:25:52]} ({Predecessor:} 13. Be1 Nc6 14. f4 a6 15. Nc3 cxd4 16. Nxc6 Bxc6 17. exd4 Ne4 18. Bb1 Bb7 19. Qd3 {½-½ Kojima,S (2499)-Yamada,K (2280) Tokyo Qual for Asian Games 2022 (10)} )Nc6 {[%emt 0:20:23]} 14. Nxc6 {[%emt 0:9:57]} Bxc6 {[%emt 0:1:4]} 15. Nc3 {[%emt 0:0:34]} ({White should play} 15. b3 $15 )Qd7 {[%emt 0:8:28]} ({Better is} 15... c4 $1 $17 {[%cal Rc4d3]} 16. Bc2 b5 )16. Bb1 {[%emt 0:8:21]} Rad8 {[%emt 0:3:36]} 17. Ne2 {[%emt 0:4:21]} Bb5 {[%emt 0:5:13]} 18. Re1 {[%emt 0:1:44]} Bd6 {[%emt 0:1:29]} 19. Ng3 {[%emt 0:10:40]} Qc7 {[%emt 0:10:9]} 20. Kf2 {[%emt 0:2:19]} (20. dxc5 $11 {was preferrable.} bxc5 21. a4 )Qb8 {[%emt 0:16:8]} ({Don't play} 20... Bxg3+ 21. hxg3 g6 22. g4 $11 )(20... g6 $17 21. a4 Ba6 )21. Bc3 $11 {[%emt 0:3:3]} c4 {[%emt 0:3:55]} 22. Nf1 {[%emt 0:0:57]} Bd7 {[%emt 0:2:20]} (22... Bxh2 $2 23. g3 $18 )23. Kg1 {[%emt 0:1:36]} b5 {[%emt 0:2:3]} 24. a3 {[%emt 0:1:23]} Bc6 {[%emt 0:5:8]} 25. Qd2 {[%emt 0:0:45]} Re7 {[%emt 0:3:20]} 26. Kh1 {[%emt 0:6:43]} Ree8 {[%emt 0:3:55]} (26... Rde8 $15 )27. Ba5 {[%emt 0:1:11] [#]} (27. Kg1 $11 )g6 {[%emt 0:1:13]} 28. Ng3 {[%emt 0:6:48] [#]} (28. Bxd8 $14 Qxd8 29. Qf2 )h5 {[%emt 0:1:50]} 29. Re2 {[%emt 0:0:37] [#]} (29. Bxd8 $14 Qxd8 30. Qf2 )Re7 {[%emt 0:1:58]} 30. Ree1 $2 {[%emt 0:4:16] Weighted Error Value: White=0.28 (precise) /Black=0.37} (30. Bxd8 $16 {stays on course.} Qxd8 31. e4 Bxg3 32. e5 (32. hxg3 dxe4 33. fxe4 Nxe4 $14 ))1/2-1/2

[Event "56th Biel Festival MTO 2023"]
[White "Misiano,Franco"]
[Black "Stijve,Niels"]
[Site "Biel"]
[Round "3.48"]
[Annotator "TA"]
[Result "1-0"]
[Date "2023.07.19"]
[WhiteElo "2133"]
[BlackElo "2088"]
[PlyCount "57"]
[TimeControl "60"]

{[%evp 14,57,40,25,35,26,60,18,27,6,15,-8,-16,-56,-76,-95,-28,-15,0,-11,0,-9,0,0,0,-20,41,39,31,26,29,23,98,26,41,9,50,0,19,-487,27,-506,461,203,840,-572]} 1. e4 {[%emt 0:0:0]} c5 {[%emt 0:0:0]} 2. Nf3 {[%emt 0:0:0]} e6 {[%emt 0:0:0]} 3. d4 {[%emt 0:0:0]} cxd4 {[%emt 0:0:0]} 4. Nxd4 {[%emt 0:0:0]} a6 {[%emt 0:0:0]} 5. Nc3 {[%emt 0:0:0]} b5 {[%emt 0:0:0]} 6. Bd3 {[%emt 0:0:0]} Qb6 {[%emt 0:0:0]} 7. Nf3 {[%emt 0:0:0]} Qc7 {[%emt 0:0:0]} 8. O-O {[%emt 0:0:0]} Bb7 {[%emt 0:0:0] B43: Sicilian: Kan Variation: 5 Nc3.} 9. Re1 {[%emt 0:0:0]} Be7 {[%emt 0:0:0]} 10. Bd2 {[%emt 0:0:0]} (10. e5 $5 {[%cal Rc1f4]} )Nc6 {[%emt 0:0:0] The position is equal.} 11. a4 {[%emt 0:0:0]} b4 {[%emt 0:0:0]} 12. Na2 {[%emt 0:3:25]} (12. Nd5 $5 exd5 13. exd5 $11 )Nf6 {[%emt 0:21:47] [#]} 13. e5 $146 {[%emt 0:0:30]} ({Predecessor:} 13. c3 bxc3 14. Bxc3 a5 15. Nd4 O-O 16. Nb5 Qb8 17. Rc1 Ne5 18. Bb1 Rd8 19. Bd4 {0-1 Andreev,E (2441)-David,A (2572) Paleochora op 9th 2016 (5)} )Ng4 {[%emt 0:0:30]} 14. Bf4 {[%emt 0:3:34][%cal Bd2f4,Bf4g3,Bg3e5][%mdl 32]} f6 {[%emt 0:5:59]} (14... Qb6 $6 15. Qd2 $11 )(14... Bc5 $17 15. Bg3 h5 )15. h3 {[%emt 0:0:30]} fxe5 {[%emt 0:14:36] [#] White must now prevent ...Nxf2.} 16. Bg3 {[%emt 0:3:20]} Nf6 {[%emt 0:2:12] White should prevent ...0-0.} 17. Nxe5 {[%emt 0:0:44][%cal Oe5f7] Hoping for Nf7!} ({Of course not} 17. Bxe5 Nxe5 18. Nxe5 Bc5 $19 )Nxe5 {[%emt 0:2:2]} 18. Bxe5 {[%emt 0:1:9]} Qc6 {[%emt 0:0:50][%csl Gb7,LRa4,LRg2][%cal Rc6g2]} 19. f3 {[%emt 0:0:32] Active counter play!} Bc5+ {[%emt 0:7:9]} (19... Qxa4 $11 20. Kh1 O-O )20. Kh1 $14 {[%emt 0:1:4]} O-O {[%emt 0:12:33]} 21. c3 {[%emt 0:0:30]} bxc3 {[%emt 0:0:30]} 22. Nxc3 {[%emt 0:0:15]} Nh5 {[%emt 0:4:21]} (22... Bb4 $11 {keeps the balance.} )23. Ne4 {[%emt 0:2:41]} (23. Qc2 $16 h6 24. Rac1 )Bb4 $11 {[%emt 0:6:1]} 24. Rc1 {[%emt 0:6:24]} Qb6 {[%emt 0:4:29]} (24... Qd5 $5 {[%cal Rd5e5]} 25. Nc3 Qa5 $14 )25. Rf1 {[%emt 0:5:28]} (25. Ng5 $14 Qa5 26. Bxh7+ Kh8 27. f4 (27. Re3 Qd5 $16 ))Rf5 {[%emt 0:4:48] [#]} 26. Kh2 $2 {[%emt 0:2:27][%mdl 8192]} d5 $2 {[%emt 0:15:43]} ({Black should try} 26... Rxe5 $19 27. f4 Rd5 )27. Ng3 $2 {[%emt 1:11:27][%mdl 8192]} (27. Bc7 $11 {and White stays safe.} Qe3 28. Nf2 )Rg5 $4 {[%emt 0:0:30][%mdl 8192]} (27... Rxe5 $19 {and all is fine.} 28. Nxh5 Rxh5 )28. Nxh5 {[%emt 0:0:30]} ({Less strong is} 28. f4 Nxg3 29. fxg5 Nxf1+ 30. Qxf1 Rf8 $14 )(28. Bc7 $142 Qa7 29. Nxh5 Rxh5 30. f4 )Rxh5 $2 {[%emt 0:0:30]} (28... Rxe5 29. f4 Rf5 )29. Qe2 $4 {[%emt 0:0:30][%mdl 40960] Weighted Error Value: White=0.94/Black=0.65. Loss on time!?} (29. f4 $18 Rh4 30. g3 )1-0

[Event "56th Biel Festival MTO 2023"]
[White "Giacomini,Hector"]
[Black "Hornung,Hans"]
[Site "Biel"]
[Round "3.49"]
[Annotator "TA"]
[Result "0-1"]
[Date "2023.07.19"]
[WhiteElo "2126"]
[BlackElo "2047"]
[PlyCount "90"]
[TimeControl "60"]

{[%evp 18,89,33,22,47,48,52,52,66,35,73,69,70,-37,-36,-48,-69,-101,-98,-91,-85,-193,-188,-295,-205,-211,-198,-211,-206,-270,-264,-265,-183,-818,-816,-783,-705,-1311,-1289,-1004,-782,-770,-541,-544,-510,-506,-345,-354,0,-550,535,0,0,-168,-36,-383,-339,-308,-349,-338,-244,-237,-205,-701,-700,-886,-866,-29984,-487,-1325,-797,-29998,-29999,-29999]} 1. Nf3 {[%emt 0:0:0]} Nf6 {[%emt 0:0:0]} 2. e3 {[%emt 0:0:0]} g6 {[%emt 0:0:0]} 3. d4 {[%emt 0:0:0]} Bg7 {[%emt 0:0:0]} 4. c4 {[%emt 0:0:0]} O-O {[%emt 0:0:0]} 5. Be2 {[%emt 0:0:0]} d6 {[%emt 0:0:0]} 6. Nc3 {[%emt 0:0:0]} Nbd7 {[%emt 0:0:0]} 7. O-O {[%emt 0:0:0]} e5 {[%emt 0:0:0]} 8. Qc2 {[%emt 0:0:0]} Re8 {[%emt 0:0:0]} 9. Rd1 {[%emt 0:0:0]} e4 {[%emt 0:0:0] 9...c6 is not played anymore.} 10. Nd2 {[%emt 0:0:0]} Qe7 {[%emt 0:0:0] E61: King's Indian: Early deviations for White, including Smyslov System.} 11. b4 {[%emt 0:0:0]} Nf8 {[%emt 0:0:0]} 12. a4 {[%emt 0:0:0]} Bf5 {[%emt 0:0:0] White is slightly better.} 13. b5 {[%emt 0:0:0] [#]} Ne6 $146 {[%emt 0:2:49]} ({Predecessor:} 13... h5 14. Ba3 Ne6 15. Nf1 h4 16. c5 h3 17. g3 Ng5 18. Nd2 Bh6 19. Re1 Qe6 {0-1 Pikula,D (2351)-Ozguner,H (2165) Arandjelovac ASK-3 IM 2021 (4)} )14. Nf1 {[%emt 0:0:0]} (14. Ndxe4 Nxe4 15. Nxe4 Bxe4 16. Qxe4 Nxd4 17. Rxd4 Qxe4 18. Rxe4 Bxa1 19. Rxe8+ Rxe8 $17 )Ng4 {[%emt 0:19:10]} 15. Nd5 {[%emt 0:21:38]} (15. Qd2 $14 )Qh4 $15 {[%emt 0:2:48]} 16. Bxg4 {[%emt 0:2:58]} Bxg4 {[%emt 0:7:6]} (16... Qxg4 17. Ng3 $14 )17. Re1 {[%emt 0:4:52]} c6 {[%emt 0:3:51]} 18. bxc6 {[%emt 0:2:15]} bxc6 {[%emt 0:0:9]} 19. Nc3 {[%emt 0:1:5]} (19. Nf4 $17 )Ng5 $19 {[%emt 0:2:10]} 20. Ba3 {[%emt 0:23:56] [#]} (20. Kh1 {is the only way for White.} )Nf3+ $1 {[%emt 0:4:13][%mdl 576] Double Attack} 21. Kh1 {[%emt 0:0:30][%cal Oa3d6] [#]} (21. gxf3 Bxf3 22. Ne2 Bh6 )Rad8 {[%emt 0:12:14][%cal Ba8d8,Bd8d6,Bd6c6,Bc6c5][%mdl 32]} 22. Red1 {[%emt 0:12:6] [#]} f5 $1 {[%emt 0:14:25]} 23. Ra2 {[%emt 0:8:31] [#]} (23. Rdb1 c5 )c5 $1 {[%emt 0:1:4][%cal Rc5d4][%mdl 512]} 24. Nb5 {[%emt 0:4:22]} (24. Nd5 cxd4 )a6 $40 {[%emt 0:6:19][%mdl 128] Black attacks with force.} 25. Nxd6 {[%emt 0:0:35]} (25. Nc7 Re7 26. Nd5 )Rxd6 {[%emt 0:0:21]} 26. Bxc5 {[%emt 0:0:42]} Rc6 {[%emt 0:1:6][%cal Og6g5] Strongly threatening ...g5!} 27. Rb1 {[%emt 0:9:3] [#]} g5 $1 {[%emt 0:0:51][%cal Oc6h6]} 28. Rb6 {[%emt 0:3:19] [#]} Rxc5 $1 {[%emt 0:2:56][%mdl 512]} 29. Qb3 {[%emt 0:1:33]} (29. a5 Bh3 )Nxd4 {[%emt 0:7:55]} 30. exd4 {[%emt 0:1:24]} Bxd4 {[%emt 0:0:26]} 31. Rb8 {[%emt 0:0:51]} Rce5 {[%emt 0:5:51]} 32. c5+ {[%emt 0:0:32]} Kf8 $2 {[%emt 0:3:37]} (32... Kg7 $1 $19 33. Rxe8 Rxe8 34. Qb7+ Kf8 )33. Rd2 $2 {[%emt 0:1:26][%mdl 8192]} (33. c6 $11 {and White stays safe.} Bxf2 34. c7 )Bxf2 $4 {[%emt 0:1:34][%mdl 8192]} (33... Rxb8 34. Qxb8+ Kf7 35. Qb7+ (35. Rxd4 Qxf2 36. Rd7+ Re7 $11 )Kf6 36. Qc6+ Re6 37. Qd5 $16 )(33... e3 $19 {and life is good for Black.} 34. fxe3 Qe1 )34. Rd7 {[%emt 0:0:40]} (34. Qb6 $1 $18 {[%cal Rb6f6]} Bd4 35. Qf6+ Kg8 36. Rxd4 )Qh5 $11 {[%emt 0:1:16]} (34... Rxc5 $2 35. Qf7# )35. Rbb7 $2 {[%emt 0:1:13]} (35. Rxe8+ $11 Qxe8 36. Rxh7 )R5e7 $19 {[%emt 0:0:52]} (35... Rxc5 {gets mated.} 36. Rg7 )(35... Bxc5 $2 36. Rf7+ Kg8 37. Rxh7+ R5e6 38. Rxh5 Bxh5 39. Qd5 $18 )36. c6 $2 {[%emt 0:2:16][%mdl 8192] [#] This move loses the game for White.} ({White has to play} 36. Qc3 $15 Qg6 37. h3 )f4 $1 {[%emt 0:0:57]} 37. Rxe7 {[%emt 0:0:18]} Rxe7 {[%emt 0:0:11]} 38. Rb8+ {[%emt 0:0:53]} Re8 {[%emt 0:1:1]} 39. Qb4+ {[%emt 0:0:23]} Kf7 {[%emt 0:1:37]} 40. Rb7+ $2 {[%emt 0:0:39]} (40. Rxe8 Kxe8 41. Qxe4+ Kd8 42. c7+ Kc8 43. Qe7 )Kg6 {[%emt 0:2:10] ...e3 would be deadly.} 41. Qd6+ {[%emt 0:0:26] [#]} Be6 $1 {[%emt 0:0:0]} 42. c7 {[%emt 0:3:58]} Kf5 {[%emt 0:0:0]} (42... f3 $142 43. Rb3 Qg4 44. Ng3 Bxg3 45. Qxg3 Qxg3 {[%mdl 64] Remove Defender} 46. hxg3 Bxb3 47. gxf3 e3 {[%mdl 64] Zwischenzug} 48. Kg2 Bd5 49. g4 a5 50. c8=B Rxc8 51. Kg3 Rc1 52. Kg2 e2 53. Kh3 e1=Q 54. Kh2 Bxf3 55. Kh3 Qh4# )43. Rb8 {[%emt 0:5:31]} (43. Qd2 $142 Rc8 44. Qxf2 )f3 {[%emt 0:0:0] ( -> ...fxg2+)} 44. Rb2 {[%emt 0:18:19]} fxg2+ {[%emt 0:0:0]} 45. Kxg2 {[%emt 0:0:3]} Qf3# {[%emt 0:0:0] Weighted Error Value: White=1.37/Black=1.03} 0-1

[Event "56th Biel Festival MTO 2023"]
[White "Liu,Yan"]
[Black "Aryan Chopra"]
[Site "Biel"]
[Round "4.1"]
[Annotator "ChessBase"]
[Result "1-0"]
[Date "2023.07.20"]
[WhiteElo "2542"]
[BlackElo "2626"]
[PlyCount "69"]
[TimeControl "60"]

1. c4 {[%emt 0:0:0]} c6 {[%emt 0:0:0]} 2. Nf3 {[%emt 0:0:0]} d5 {[%emt 0:0:0]} 3. d4 {[%emt 0:0:0]} Nf6 {[%emt 0:0:0]} 4. e3 {[%emt 0:0:0]} Bf5 {[%emt 0:0:0]} 5. Nc3 {[%emt 0:0:0]} e6 {[%emt 0:0:0]} 6. Nh4 {[%emt 0:0:0]} Be4 {[%emt 0:0:0]} 7. f3 {[%emt 0:0:0]} Bg6 {[%emt 0:0:0]} 8. Qb3 {[%emt 0:0:0]} Qc7 {[%emt 0:0:0]} 9. Bd2 {[%emt 0:0:0]} Be7 {[%emt 0:0:0]} 10. Nxg6 {[%emt 0:0:28]} hxg6 {[%emt 0:0:0]} 11. cxd5 {[%emt 0:4:26]} Nxd5 {[%emt 0:0:0]} 12. O-O-O {[%emt 0:6:55]} Nxc3 {[%emt 0:0:0]} 13. Bxc3 {[%emt 0:0:47]} a5 {[%emt 0:0:0]} 14. g4 {[%emt 0:14:48]} Nd7 {[%emt 0:2:25]} 15. Kb1 {[%emt 0:4:16]} b5 {[%emt 0:22:25]} 16. Qc2 {[%emt 0:1:11]} Rc8 {[%emt 0:6:34]} 17. e4 {[%emt 0:4:45]} O-O {[%emt 0:12:51]} 18. h4 {[%emt 0:2:46]} b4 {[%emt 0:0:26]} 19. Be1 {[%emt 0:9:59]} c5 {[%emt 0:0:9]} 20. h5 {[%emt 0:10:25]} cxd4 {[%emt 0:16:44]} 21. Qxc7 {[%emt 0:0:10]} Rxc7 {[%emt 0:0:2]} 22. Bg3 {[%emt 0:0:26]} e5 {[%emt 0:7:57]} 23. hxg6 {[%emt 0:9:17]} fxg6 {[%emt 0:0:31]} 24. Rxd4 {[%emt 0:2:12]} Rxf3 {[%emt 0:0:38]} 25. Be2 {[%emt 0:5:1]} Rf7 {[%emt 0:19:18]} 26. Bc4 {[%emt 0:2:12]} Rxc4 {[%emt 0:0:5]} 27. Rxc4 {[%emt 0:0:3]} Rf3 {[%emt 0:0:5]} 28. Rd1 {[%emt 0:3:18]} Rxg3 {[%emt 0:1:24]} 29. Rxd7 {[%emt 0:0:6]} Bg5 {[%emt 0:0:5]} 30. Ra7 {[%emt 0:2:31]} Rxg4 {[%emt 0:1:34]} 31. Rc8+ {[%emt 0:1:27]} Kh7 {[%emt 0:0:5]} 32. Raa8 {[%emt 0:0:5]} Rg1+ {[%emt 0:0:5]} 33. Kc2 {[%emt 0:0:4]} Rc1+ {[%emt 0:0:6]} 34. Kd3 {[%emt 0:0:16]} Rxc8 {[%emt 0:0:23]} 35. Rxc8 {[%emt 0:0:4]} 1-0

[Event "56th Biel Festival MTO 2023"]
[White "Nguyen,Ngoc Truong Son"]
[Black "Samant Aditya S"]
[Site "Biel"]
[Round "4.2"]
[Annotator "RC"]
[Result "1/2-1/2"]
[Date "2023.07.20"]
[WhiteElo "2645"]
[BlackElo "2510"]
[PlyCount "90"]
[TimeControl "60"]

1. d4 {[%emt 0:0:0]} Nf6 {[%emt 0:0:0]} 2. c4 {[%emt 0:0:0]} e6 {[%emt 0:0:0]} 3. Nf3 {[%emt 0:0:0]} d5 {[%emt 0:0:0]} 4. Nc3 {[%emt 0:0:0]} Be7 {[%emt 0:0:0]} 5. Bf4 {[%emt 0:0:0]} O-O {[%emt 0:0:0]} 6. e3 {[%emt 0:0:0]} Nbd7 {[%emt 0:0:0]} 7. Be2 {[%emt 0:0:0]} dxc4 {[%emt 0:0:0]} 8. Bxc4 {[%emt 0:0:0]} a6 {[%emt 0:0:0]} 9. a4 {[%emt 0:1:46]} c5 {[%emt 0:0:0]} 10. O-O {[%emt 0:0:37]} cxd4 {[%emt 0:3:44]} 11. Qxd4 {[%emt 0:2:24]} Qa5 {[%emt 0:11:47]} 12. Rfd1 {[%emt 0:11:53]} b6 {[%emt 0:16:42]} 13. Bd6 {[%emt 0:10:45]} Bxd6 {[%emt 0:4:32]} 14. Qxd6 {[%emt 0:1:14]} Bb7 {[%emt 0:1:28]} 15. Bd5 {[%emt 0:4:22]} Nc5 {[%emt 0:31:12]} 16. b4 {[%emt 0:17:7]} Qxb4 {[%emt 0:0:17]} 17. Bxb7 {[%emt 0:0:6]} Ne8 {[%emt 0:7:28]} 18. Qc6 {[%emt 0:6:33]} Rb8 {[%emt 0:0:7]} 19. Bxa6 {[%emt 0:2:57]} Qxc3 {[%emt 0:6:26]} 20. a5 {[%emt 0:4:0]} Nf6 {[%emt 0:9:14]} 21. Rdc1 {[%emt 0:4:26]} Qb4 {[%emt 0:0:26]} 22. axb6 {[%emt 0:7:0]} Nb3 {[%emt 0:3:50]} 23. Ra4 {[%emt 0:1:10]} Qxb6 {[%emt 0:0:7]} 24. Qxb6 {[%emt 0:0:20]} Rxb6 {[%emt 0:0:2]} 25. Rc2 {[%emt 0:2:55]} h6 {[%emt 0:1:38]} 26. g3 {[%emt 0:1:39]} Ra8 {[%emt 0:3:37]} 27. Bd3 {[%emt 0:0:54]} Rd8 {[%emt 0:0:8]} 28. Ne5 {[%emt 0:2:14]} Rbd6 {[%emt 0:0:48]} 29. Be2 {[%emt 0:6:15]} Nd7 {[%emt 0:0:52]} 30. Nf3 {[%emt 0:7:3]} Nbc5 {[%emt 0:0:25]} 31. Rac4 {[%emt 0:0:47]} Na6 {[%emt 0:0:22]} 32. h4 {[%emt 0:1:46]} g6 {[%emt 0:0:24]} 33. Kg2 {[%emt 0:1:46]} Kg7 {[%emt 0:0:47]} 34. g4 {[%emt 0:0:13]} Nb6 {[%emt 0:0:27]} 35. Rd4 {[%emt 0:0:56]} Nb8 {[%emt 0:0:36]} 36. Bb5 {[%emt 0:0:44]} Rxd4 {[%emt 0:0:26]} 37. Nxd4 {[%emt 0:0:18]} Nd5 {[%emt 0:0:12]} 38. Kg3 {[%emt 0:2:14]} Nd7 {[%emt 0:0:29]} 39. g5 {[%emt 0:1:35]} hxg5 {[%emt 0:0:38]} 40. hxg5 {[%emt 0:0:2]} Nf8 {[%emt 0:0:34]} 41. Nf3 {[%emt 0:0:0]} Rb8 {[%emt 0:0:0]} 42. Be2 {[%emt 0:0:0]} Rb7 {[%emt 0:0:0]} 43. e4 {[%emt 0:0:0]} Rc7 {[%emt 0:0:0]} 44. Rxc7 {[%emt 0:0:0]} Nxc7 {[%emt 0:0:0]} 45. Kf4 {[%emt 0:0:0]} Nd7 {[%emt 0:0:0]} 1/2-1/2